fUST/lending_fUST_20250429
["ID","MTS","AMOUNT","RATE_DAILY","PERIOD"]
[359317963,1745917846066,-400.0,0.00035616,3]
[359317965,1745917846076,-400.0,0.00035616,3]
[359317967,1745917846086,-1000.0,0.00035616,3]
[359317970,1745917846096,-400.0,0.00035616,3]
[359317972,1745917846106,-400.0,0.00035616,3]
[359317973,1745917846116,-400.0,0.00035616,3]
[359317976,1745917846126,-323.82697809,0.00035616,3]
[359317977,1745917846135,-400.0,0.00035616,3]
[359317979,1745917846145,-500.0,0.00035616,3]
[359317980,1745917846155,-400.0,0.00035616,3]
[359317981,1745917846164,-400.0,0.00035616,3]
[359317982,1745917846174,-400.0,0.00035616,3]
[359317983,1745917846184,-400.0,0.00035616,3]
[359317984,1745917846193,-400.0,0.00035616,3]
[359317985,1745917846203,-475.75673581,0.00035616,3]
[359317986,1745917846212,-200.51285839,0.00035616,3]
[359317987,1745917846222,-400.0,0.00035616,3]
[359317988,1745917846234,-400.0,0.00035616,3]
[359317989,1745917846243,-400.0,0.00035616,3]
[359317990,1745917846252,-400.0,0.00035616,3]
[359317991,1745917846263,-400.0,0.00035616,3]
[359317992,1745917846273,-400.0,0.00035616,3]
[359317993,1745917846283,-400.0,0.00035616,3]
[359317994,1745917846292,-400.0,0.00035616,3]
[359317995,1745917846302,-400.0,0.00035616,3]
[359317996,1745917846312,-400.0,0.00035616,3]
[359317997,1745917846321,-400.0,0.00035616,3]
[359317998,1745917846331,-400.0,0.00035616,3]
[359317999,1745917846340,-481.59450379,0.00035616,3]
[359318000,1745917846350,-400.0,0.00035616,3]
[359318002,1745917846360,-400.0,0.00035616,3]
[359318004,1745917846369,-400.0,0.00035616,3]
[359318006,1745917846380,-400.0,0.00035616,3]
[359318008,1745917846390,-400.0,0.00035616,3]
[359318010,1745917846400,-400.0,0.00035616,3]
[359318012,1745917846410,-400.0,0.00035616,3]
[359318014,1745917846421,-400.0,0.00035616,3]
[359318016,1745917846431,-400.0,0.00035616,3]
[359318018,1745917846441,-400.0,0.00035616,3]
[359318020,1745917846451,-215.06049427,0.00035616,3]
[359318022,1745917846461,-400.0,0.00035616,3]
[359318024,1745917846472,-488.43,0.00035616,3]
[359318025,1745917846481,-400.0,0.00035616,3]
[359318026,1745917846492,-400.0,0.00035616,3]
[359318027,1745917846502,-400.0,0.00035616,3]
[359318028,1745917846512,-400.0,0.00035616,3]
[359318029,1745917846522,-400.0,0.00035616,3]
[359318030,1745917846532,-400.0,0.00035616,3]
[359318031,1745917846543,-588.43,0.00035616,3]
[359318032,1745917846553,-400.0,0.00035616,3]
[359318033,1745917846562,-400.0,0.00035616,3]
[359318034,1745917846572,-400.0,0.00035616,3]
[359318035,1745917846582,-1051.87,0.00035616,3]
[359318036,1745917846591,-400.0,0.00035616,3]
[359318037,1745917846601,-890.97,0.00035616,3]
[359318038,1745917846610,-402.19,0.00035616,3]
[359318039,1745917846620,-400.0,0.00035616,3]
[359318040,1745917846630,-400.0,0.00035616,3]
[359318041,1745917846640,-628.97,0.00035616,3]
[359318042,1745917846649,-400.0,0.00035616,3]
[359318043,1745917846659,-400.0,0.00035616,3]
[359318044,1745917846668,-400.0,0.00035616,3]
[359318045,1745917846678,-154.89254831,0.00035616,3]
[359318046,1745917846687,-511.51,0.00035616,3]
[359318047,1745917846696,-400.0,0.00035616,3]
[359318048,1745917846706,-154.436824,0.00035616,14]
[359318049,1745917846717,-400.0,0.00035616,3]
[359318050,1745917846728,-400.0,0.00035616,3]
[359318051,1745917846737,-307.46348495,0.00035616,3]
[359318052,1745917846747,-497.85277586,0.00035616,3]
[359318053,1745917846757,-400.0,0.00035616,3]
[359318054,1745917846767,-400.0,0.00035616,3]
[359318055,1745917846777,-500.00091867,0.00035616,2]
[359318056,1745917846787,-1466.56,0.00035616,3]
[359318057,1745917846797,-262.30445813,0.00035616,3]
[359318058,1745917846807,-400.0,0.00035616,3]
[359318059,1745917846817,-400.0,0.00035616,3]
[359318060,1745917846827,-172.0,0.00035616,3]
[359318061,1745917846837,-500.0,0.00035616,3]
[359318062,1745917846847,-400.0,0.00035616,3]
[359318063,1745917846857,-400.0,0.00035616,3]
[359318064,1745917846867,-400.0,0.00035616,3]
[359318065,1745917846877,-400.0,0.00035616,3]
[359318066,1745917846887,-885.18,0.00035616,3]
[359318067,1745917846896,-400.0,0.00035616,3]
[359318068,1745917846906,-400.0,0.00035616,3]
[359318069,1745917846915,-400.0,0.00035616,3]
[359318070,1745917846922,-400.0,0.00035616,3]
[359318071,1745917846931,-612.59284553,0.00035616,3]
[359318072,1745917846940,-400.0,0.00035616,3]
[359318073,1745917846949,-400.0,0.00035616,3]
[359318074,1745917846958,-400.0,0.00035616,3]
[359318075,1745917846967,-323.04165269,0.00035616,3]
[359318076,1745917846976,-314.32441818,0.00035616,3]
[359318077,1745917846987,-400.0,0.00035616,3]
[359318078,1745917846997,-400.0,0.00035616,3]
[359318079,1745917847007,-400.0,0.00035616,3]
[359318080,1745917847017,-638.58,0.00035616,3]
[359318081,1745917847027,-400.0,0.00035616,3]
[359318082,1745917847037,-400.0,0.00035616,3]
[359318083,1745917847046,-400.0,0.00035616,3]
[359318084,1745917847056,-400.0,0.00035616,3]
[359318085,1745917847066,-400.0,0.00035616,3]
[359318086,1745917847075,-400.0,0.00035616,3]
[359318087,1745917847086,-400.84,0.00035616,3]
[359318088,1745917847095,-400.0,0.00035616,3]
[359318089,1745917847105,-400.0,0.00035616,3]
[359318090,1745917847116,-1061.77,0.00035616,3]
[359318091,1745917847126,-1342.83,0.00035616,3]
[359318092,1745917847137,-400.0,0.00035616,3]
[359318093,1745917847148,-400.0,0.00035616,3]
[359318094,1745917847159,-184.56714089,0.00035616,3]
[359318095,1745917847170,-400.0,0.00035616,3]
[359318096,1745917847180,-521.52,0.00035616,3]
[359318097,1745917847189,-1149.58,0.00035616,3]
[359318098,1745917847199,-151.0,0.00035616,3]
[359318099,1745917847208,-400.0,0.00035616,3]
[359318100,1745917847218,-500.0,0.00035616,3]
[359318101,1745917847233,-400.0,0.00035616,3]
[359318102,1745917847242,-400.0,0.00035616,3]
[359318103,1745917847252,-400.0,0.00035616,3]
[359318104,1745917847263,-151.0,0.00035616,3]
[359318105,1745917847274,-400.0,0.00035616,3]
[359318106,1745917847284,-400.0,0.00035616,3]
[359318107,1745917847294,-623.04,0.00035616,3]
[359318108,1745917847306,-151.0,0.00035616,3]
[359318109,1745917847317,-400.0,0.00035616,3]
[359318110,1745917847327,-400.0,0.00035616,3]
[359318111,1745917847336,-400.0,0.00035616,3]
[359318112,1745917847346,-400.0,0.00035616,3]
[359318113,1745917847356,-400.0,0.00035616,3]
[359318114,1745917847366,-152.60363647,0.00035616,3]
[359318115,1745917847375,-400.0,0.00035616,3]
[359318116,1745917847385,-400.0,0.00035616,3]
[359318117,1745917847395,-400.0,0.00035616,3]
[359318118,1745917847405,-400.0,0.00035616,3]
[359318119,1745917847415,-400.0,0.00035616,3]
[359318120,1745917847425,-557.1,0.00035616,3]
[359318121,1745917847436,-400.0,0.00035616,3]
[359318122,1745917847446,-400.0,0.00035616,3]
[359318123,1745917847457,-400.0,0.00035616,3]
[359318124,1745917847467,-400.0,0.00035616,3]
[359318125,1745917847477,-400.0,0.00035616,3]
[359318126,1745917847487,-400.0,0.00035616,3]
[359318127,1745917847497,-881.8,0.00035616,3]
[359318128,1745917847507,-400.0,0.00035616,3]
[359318129,1745917847516,-400.0,0.00035616,3]
[359318130,1745917847526,-400.0,0.00035616,3]
[359318131,1745917847536,-957.77,0.00035616,3]
[359318132,1745917847546,-151.0,0.00035616,2]
[359318133,1745917847555,-400.0,0.00035616,3]
[359318134,1745917847565,-400.0,0.00035616,3]
[359318135,1745917847575,-1003.32,0.00035616,3]
[359318136,1745917847584,-400.0,0.00035616,3]
[359318137,1745917847594,-151.0,0.00035616,14]
[359318138,1745917847604,-400.0,0.00035616,3]
[359318139,1745917847613,-400.0,0.00035616,3]
[359318140,1745917847623,-400.0,0.00035616,3]
[359318141,1745917847632,-400.0,0.00035616,3]
[359318142,1745917847642,-400.0,0.00035616,3]
[359318143,1745917847651,-700.43,0.00035616,3]
[359318144,1745917847661,-402.57115837,0.00035616,3]
[359318145,1745917847671,-400.0,0.00035616,3]
[359318146,1745917847681,-400.0,0.00035616,3]
[359318147,1745917847691,-785.45,0.00035616,3]
[359318148,1745917847703,-400.0,0.00035616,3]
[359318149,1745917847712,-6471.32,0.00035616,3]
[359318150,1745917847723,-400.0,0.00035616,3]
[359318151,1745917847733,-400.0,0.00035616,3]
[359318152,1745917847742,-400.0,0.00035616,3]
[359318153,1745917847752,-500.0,0.00035616,3]
[359318154,1745917847761,-400.0,0.00035616,3]
[359318155,1745917847771,-752.32,0.00035616,3]
[359318156,1745917847780,-557.77,0.00035616,3]
[359318157,1745917847790,-1112.45,0.00035616,3]
[359318158,1745917847799,-200.63375298,0.00035616,3]
[359318159,1745917847809,-2016.37,0.00035616,3]
[359318160,1745917847819,-158.431997,0.00035616,14]
[359318161,1745917847828,-151.0,0.00035616,14]
[359318162,1745917847837,-1085.81,0.00035616,3]
[359318163,1745917847847,-400.0,0.00035616,3]
[359318164,1745917847857,-400.0,0.00035616,3]
[359318165,1745917847867,-3563.97,0.00035616,3]
[359318166,1745917847876,-400.0,0.00035616,3]
[359318167,1745917847886,-400.0,0.00035616,3]
[359318168,1745917847895,-400.0,0.00035616,3]
[359318169,1745917847905,-2176.35,0.00035616,3]
[359318170,1745917847915,-400.0,0.00035616,3]
[359318171,1745917847924,-400.0,0.00035616,3]
[359318172,1745917847934,-2534.5,0.00035616,3]
[359318173,1745917847943,-400.99821114,0.00035616,3]
[359318174,1745917847952,-947.15,0.00035616,3]
[359318175,1745917847963,-400.0,0.00035616,3]
[359318176,1745917847974,-400.0,0.00035616,3]
[359318177,1745917847984,-400.0,0.00035616,3]
[359318178,1745917847994,-400.0,0.00035616,3]
[359318179,1745917848004,-400.0,0.00035616,3]
[359318180,1745917848014,-1355.69,0.00035616,3]
[359318181,1745917848024,-309.4227795,0.00035616,3]
[359318182,1745917848033,-335.10514772,0.00035616,3]
[359318183,1745917848315,-64.89485228,0.00035616,3]
[359318184,1745917848325,-1820.19710509,0.00035616,3]
[359318185,1745917848787,-379.91289491,0.00035616,3]
[359318186,1745917848798,-400.0,0.00035616,3]
[359318187,1745917848808,-47.35784153,0.00035616,3]
[359318188,1745917848820,-352.64215847,0.00035616,3]
[359318189,1745917848830,-400.0,0.00035616,3]
[359318190,1745917848841,-400.0,0.00035616,3]
[359318191,1745917848851,-400.0,0.00035616,3]
[359318192,1745917848861,-400.0,0.00035616,3]
[359318193,1745917848871,-400.0,0.00035616,3]
[359318194,1745917848881,-1029.78,0.00035616,3]
[359318195,1745917848891,-400.0,0.00035616,3]
[359318196,1745917848901,-400.0,0.00035616,3]
[359318197,1745917848911,-400.0,0.00035616,3]
[359318198,1745917848921,-400.0,0.00035616,3]
[359318199,1745917848931,-616.69,0.00035616,3]
[359318200,1745917848941,-400.0,0.00035616,3]
[359318201,1745917848951,-400.0,0.00035616,3]
[359318202,1745917848962,-500.0,0.00035616,3]
[359318203,1745917848972,-400.0,0.00035616,3]
[359318204,1745917848983,-561.72,0.00035616,3]
[359318205,1745917848993,-400.0,0.00035616,3]
[359318206,1745917849004,-1143.00146005,0.00035616,3]
[359318207,1745917849017,-1835.35853995,0.00035616,3]
[359318208,1745917849027,-1290.83,0.00035616,3]
[359318209,1745917849037,-400.0,0.00035616,3]
[359318210,1745917849048,-400.0,0.00035616,3]
[359318211,1745917849058,-523.61254332,0.00035616,3]
[359318252,1745919032239,-200.0,0.00024658,2]
[359318253,1745919032249,-380.0,0.00024658,2]
[359318254,1745919032259,-4135.6033948,0.00024869,2]
[359318255,1745919032270,-300.0,0.0002487,2]
[359318256,1745919032280,-300.0,0.0002487,2]
[359318257,1745919032291,-17826.23391006,0.00024871,2]
[359318258,1745919032303,-2113.42340219,0.00024871,2]
[359318259,1745919032314,-19939.65731225,0.00024873,2]
[359318260,1745919032325,-19939.65731225,0.00024886,2]
[359318261,1745919032335,-15224.32334833,0.00024892,2]
[359318262,1745919032347,-594.03961862,0.00024892,2]
[359318263,1745919032367,-4121.2943453,0.00024892,2]
[359318264,1745919032376,-250.0,0.00025087,2]
[359318265,1745919032386,-607.54184964,0.0002515,2]
[359318266,1745919032395,-5138.89110108,0.00025327,5]
[359318267,1745919032404,-5000.0,0.00025327,4]
[359318268,1745919032414,-5000.0,0.00025327,3]
[359318269,1745919032423,-5000.0,0.00025327,4]
[359318270,1745919032433,-5000.0,0.00025327,2]
[359318271,1745919032443,-500.0,0.000254,2]
[359318272,1745919032452,-641.64019336,0.000254,2]
[359318273,1745919032462,-500.0,0.000254,2]
[359318274,1745919032471,-151.09087039,0.000254,2]
[359318275,1745919032480,-500.0,0.000254,2]
[359318276,1745919032490,-271.97108135,0.000254,2]
[359318277,1745919032500,-500.0,0.000254,2]
[359318278,1745919032510,-500.0,0.000254,2]
[359318279,1745919032521,-500.0,0.000254,2]
[359318280,1745919032531,-500.0,0.000254,2]
[359318281,1745919032542,-500.0,0.000254,2]
[359318282,1745919032553,-500.0,0.000254,2]
[359318283,1745919032562,-300.0,0.000254,2]
[359318284,1745919032571,-500.0,0.000254,2]
[359318285,1745919032581,-501.04422994,0.000254,2]
[359318286,1745919032590,-504.70204473,0.000254,2]
[359318287,1745919032599,-500.0,0.000254,2]
[359318288,1745919032609,-500.0,0.000254,2]
[359318289,1745919032618,-500.0,0.000254,2]
[359318290,1745919032627,-500.0,0.000254,2]
[359318291,1745919032642,-500.0,0.000254,2]
[359318292,1745919032655,-400.0,0.00025487,2]
[359318293,1745919032665,-600.0,0.00027044,2]
[359318294,1745919032675,-159.62677,0.00027397,2]
[359318295,1745919032685,-900.0,0.00028688,5]
[359318296,1745919032696,-478.05318116,0.00029018,2]
[359318297,1745919032707,-165.21306458,0.00030156,10]
[359318298,1745919032718,-1200.0,0.00030332,5]
[359318299,1745919032729,-200.98,0.00030869,3]
[359318300,1745919032740,-602.96,0.00030869,3]
[359318301,1745919032750,-500.0,0.00030879,5]
[359318302,1745919032760,-1000.0,0.00030879,5]
[359318303,1745919032769,-1000.0,0.00030879,5]
[359318304,1745919032779,-551.59178855,0.00030879,5]
[359318305,1745919032789,-638.14819048,0.00030879,5]
[359318306,1745919032799,-500.0,0.00030879,5]
[359318307,1745919032810,-1000.0,0.00030879,5]
[359318308,1745919032820,-1000.0,0.00030879,5]
[359318309,1745919032829,-1000.0,0.00030879,5]
[359318310,1745919032839,-1000.0,0.00030879,5]
[359318311,1745919032849,-500.0,0.00030879,5]
[359318312,1745919032859,-1000.0,0.00030879,5]
[359318313,1745919032868,-500.0,0.00030879,2]
[359318314,1745919032879,-478.05318116,0.00031133,2]
[359318315,1745919032889,-600.0,0.00031975,5]
[359318316,1745919032899,-630.04,0.00032,2]
[359318317,1745919032908,-401.96,0.00032239,3]
[359318318,1745919032918,-478.05318116,0.00033249,2]
[359318319,1745919032927,-159.62677,0.00033844,2]
[359318320,1745919032937,-328.7482205,0.00034255,2]
[359318321,1745919032947,-336.9071082,0.00034767,30]
[359318322,1745919032956,-1000.0,0.00034799,2]
[359318323,1745919032967,-166.11050345,0.000349,2]
[359318324,1745919032976,-49087.24084498,0.00035,30]
[359318325,1745919032986,-3123.26143763,0.00035,10]
[359318326,1745919032996,-3046.41980432,0.00035,30]
[359318327,1745919033006,-5000.0,0.00035,3]
[359318328,1745919033017,-153.0,0.00035342,30]
[359318329,1745919033026,-153.0,0.00035342,30]
[359318330,1745919033036,-153.0,0.00035342,30]
[359318331,1745919033046,-153.0,0.00035342,30]
[359318332,1745919033056,-478.05318116,0.00035364,2]
[359318333,1745919033066,-335.16977814,0.00035587,2]
[359318334,1745919033076,-1500.0,0.000356,5]
[359318335,1745919033085,-4579.66,0.000356,3]
[359318336,1745919033095,-419.28427416,0.00035606,3]
[359318337,1745919033105,-278.5223184,0.00035615,7]
[359318338,1745919033115,-628.69118174,0.00035615,7]
[359318339,1745919033124,-215.59959948,0.00035615,7]
[359318340,1745919033134,-1469.91817346,0.00035616,2]
[359318341,1745919033144,-151.0,0.00035616,14]
[359318342,1745919033154,-400.0,0.00035616,3]
[359318343,1745919033164,-302.73462613,0.00035616,3]
[359318344,1745919033174,-400.0,0.00035616,3]
[359318345,1745919033184,-309.94577714,0.00035616,3]
[359318346,1745919033195,-300.0,0.00035616,3]
[359318347,1745919033204,-160.32674195,0.00035616,3]
[359318348,1745919033214,-400.0,0.00035616,3]
[359318349,1745919033224,-204.54589491,0.00035616,3]
[359318350,1745919033234,-400.0,0.00035616,3]
[359318351,1745919033243,-400.0,0.00035616,3]
[359318352,1745919033253,-400.0,0.00035616,3]
[359318353,1745919033265,-244.84913606,0.00035616,3]
[359318354,1745919033275,-400.0,0.00035616,3]
[359318355,1745919033284,-400.0,0.00035616,3]
[359318356,1745919033294,-400.0,0.00035616,3]
[359318357,1745919033304,-400.0,0.00035616,3]
[359318358,1745919033314,-400.0,0.00035616,3]
[359318359,1745919033324,-400.0,0.00035616,3]
[359318360,1745919033333,-400.0,0.00035616,3]
[359318361,1745919033344,-388.62328273,0.00035616,3]
[359318362,1745919033354,-400.0,0.00035616,3]
[359318363,1745919033363,-400.0,0.00035616,3]
[359318364,1745919033373,-400.0,0.00035616,3]
[359318365,1745919033383,-400.0,0.00035616,3]
[359318366,1745919033393,-400.0,0.00035616,3]
[359318367,1745919033402,-1204.08,0.00035616,3]
[359318368,1745919033412,-404.86737743,0.00035616,3]
[359318369,1745919033422,-400.0,0.00035616,3]
[359318370,1745919033431,-400.0,0.00035616,3]
[359318371,1745919033441,-400.0,0.00035616,3]
[359318372,1745919033452,-400.0,0.00035616,3]
[359318373,1745919033462,-400.0,0.00035616,3]
[359318374,1745919033472,-400.0,0.00035616,3]
[359318375,1745919033482,-432.81,0.00035616,3]
[359318376,1745919033491,-151.0,0.00035616,14]
[359318377,1745919033501,-151.0,0.00035616,14]
[359318378,1745919033512,-400.0,0.00035616,3]
[359318379,1745919033524,-400.0,0.00035616,3]
[359318380,1745919033533,-400.0,0.00035616,3]
[359318381,1745919033544,-400.0,0.00035616,3]
[359318382,1745919033553,-400.0,0.00035616,3]
[359318383,1745919033562,-400.0,0.00035616,3]
[359318384,1745919033573,-400.0,0.00035616,3]
[359318385,1745919033583,-400.0,0.00035616,3]
[359318386,1745919033594,-306.51133026,0.00035616,3]
[359318387,1745919033604,-400.0,0.00035616,3]
[359318388,1745919033614,-400.0,0.00035616,3]
[359318389,1745919033623,-400.0,0.00035616,3]
[359318390,1745919033634,-400.0,0.00035616,3]
[359318391,1745919033646,-400.0,0.00035616,3]
[359318392,1745919033655,-400.0,0.00035616,3]
[359318393,1745919033665,-400.0,0.00035616,3]
[359318394,1745919033675,-401.41254203,0.00035616,3]
[359318395,1745919033685,-400.0,0.00035616,3]
[359318396,1745919033694,-400.0,0.00035616,3]
[359318397,1745919033703,-400.0,0.00035616,3]
[359318398,1745919033714,-400.0,0.00035616,3]
[359318399,1745919033725,-400.0,0.00035616,3]
[359318400,1745919033735,-400.0,0.00035616,3]
[359318401,1745919033745,-400.0,0.00035616,3]
[359318402,1745919033755,-400.0,0.00035616,3]
[359318403,1745919033766,-500.0,0.00035616,3]
[359318404,1745919033776,-1011.46467899,0.00035616,3]
[359318405,1745919033787,-1008.04,0.00035616,3]
[359318406,1745919033797,-400.0,0.00035616,3]
[359318407,1745919033807,-400.0,0.00035616,3]
[359318408,1745919033817,-400.0,0.00035616,3]
[359318409,1745919033827,-400.0,0.00035616,3]
[359318410,1745919033837,-400.0,0.00035616,3]
[359318411,1745919033846,-203.12701157,0.00035616,3]
[359318412,1745919033856,-400.0,0.00035616,3]
[359318413,1745919033866,-400.0,0.00035616,3]
[359318414,1745919033876,-400.0,0.00035616,3]
[359318415,1745919033886,-400.0,0.00035616,3]
[359318416,1745919033895,-400.0,0.00035616,3]
[359318417,1745919033905,-400.0,0.00035616,3]
[359318418,1745919033915,-400.0,0.00035616,3]
[359318419,1745919033926,-161.1808845,0.00035616,3]
[359318420,1745919033936,-468.08,0.00035616,3]
[359318421,1745919033946,-400.0,0.00035616,3]
[359318422,1745919033956,-400.0,0.00035616,3]
[359318423,1745919033966,-200.0,0.00035616,3]
[359318424,1745919033976,-400.0,0.00035616,3]
[359318425,1745919033985,-400.0,0.00035616,3]
[359318426,1745919033995,-400.0,0.00035616,3]
[359318427,1745919034006,-400.0,0.00035616,3]
[359318428,1745919034016,-400.0,0.00035616,3]
[359318429,1745919034025,-400.0,0.00035616,3]
[359318430,1745919034034,-500.0,0.00035616,3]
[359318431,1745919034044,-401.13024933,0.00035616,3]
[359318432,1745919034109,-400.0,0.00035616,3]
[359318433,1745919034119,-563.91,0.00035616,3]
[359318434,1745919034129,-400.0,0.00035616,3]
[359318435,1745919034139,-400.0,0.00035616,3]
[359318436,1745919034148,-441.77533336,0.00035616,3]
[359318437,1745919034158,-396.14425003,0.00035616,3]
[359318438,1745919034180,-3.85574997,0.00035616,3]
[359318439,1745919034189,-400.0,0.00035616,3]
[359318440,1745919034199,-400.0,0.00035616,3]
[359318441,1745919034208,-400.0,0.00035616,3]
[359318442,1745919034218,-490.2,0.00035616,3]
[359318443,1745919034227,-400.0,0.00035616,3]
[359318444,1745919034237,-400.0,0.00035616,3]
[359318445,1745919034247,-400.0,0.00035616,3]
[359318446,1745919034256,-400.0,0.00035616,3]
[359318447,1745919034266,-404.03284094,0.00035616,3]
[359318448,1745919034276,-400.0,0.00035616,3]
[359318449,1745919034285,-226.38486442,0.00035616,3]
[359318450,1745919034295,-400.0,0.00035616,3]
[359318451,1745919034304,-307.77945221,0.00035616,3]
[359318452,1745919034314,-400.0,0.00035616,3]
[359318453,1745919034323,-848.3,0.00035616,3]
[359318454,1745919034332,-595.67,0.00035616,3]
[359318455,1745919034342,-400.0,0.00035616,3]
[359318456,1745919034352,-400.0,0.00035616,3]
[359318457,1745919034362,-400.0,0.00035616,3]
[359318458,1745919034371,-400.0,0.00035616,3]
[359318459,1745919034381,-404.89622459,0.00035616,3]
[359318460,1745919034391,-400.0,0.00035616,3]
[359318461,1745919034401,-400.0,0.00035616,3]
[359318462,1745919034411,-400.0,0.00035616,3]
[359318463,1745919034420,-538.34850801,0.00035616,3]
[359318464,1745919034430,-611.97,0.00035616,3]
[359318465,1745919034439,-399.30288686,0.00035616,3]
[359318466,1745919034449,-400.0,0.00035616,3]
[359318467,1745919034459,-400.56573145,0.00035616,3]
[359318468,1745919034468,-1286.88,0.00035616,3]
[359318469,1745919034477,-400.0,0.00035616,3]
[359318470,1745919034487,-400.0,0.00035616,3]
[359318471,1745919034496,-499.79,0.00035616,3]
[359318472,1745919034506,-400.0,0.00035616,3]
[359318473,1745919034517,-400.0,0.00035616,3]
[359318474,1745919034526,-400.0,0.00035616,3]
[359318475,1745919034536,-400.0,0.00035616,3]
[359318476,1745919034545,-400.0,0.00035616,3]
[359318477,1745919034555,-400.0,0.00035616,3]
[359318478,1745919034564,-207.95853216,0.00035616,3]
[359318479,1745919034573,-400.0,0.00035616,3]
[359318480,1745919034583,-400.0,0.00035616,3]
[359318481,1745919034592,-400.0,0.00035616,3]
[359318482,1745919034602,-597.08,0.00035616,3]
[359318483,1745919034613,-400.0,0.00035616,3]
[359318484,1745919034623,-357.11588765,0.00035616,3]
[359318485,1745919034633,-400.0,0.00035616,3]
[359318486,1745919034645,-400.0,0.00035616,3]
[359318487,1745919034655,-400.0,0.00035616,3]
[359318488,1745919034665,-400.0,0.00035616,3]
[359318489,1745919034675,-400.0,0.00035616,3]
[359318490,1745919034686,-313.19164456,0.00035616,3]
[359318491,1745919034696,-401.59274398,0.00035616,3]
[359318492,1745919034705,-404.42791847,0.00035616,3]
[359318493,1745919034715,-400.0,0.00035616,3]
[359318494,1745919034726,-400.0,0.00035616,3]
[359318495,1745919034735,-961.52,0.00035616,3]
[359318496,1745919034745,-400.0,0.00035616,3]
[359318497,1745919034754,-400.0,0.00035616,3]
[359318498,1745919034765,-400.0,0.00035616,3]
[359318499,1745919034773,-400.0,0.00035616,3]
[359318500,1745919034782,-400.0,0.00035616,3]
[359318501,1745919034792,-400.0,0.00035616,3]
[359318502,1745919034801,-1066.1,0.00035616,3]
[359318503,1745919034811,-400.0,0.00035616,3]
[359318504,1745919034820,-2549.94,0.00035616,3]
[359318505,1745919034829,-400.0,0.00035616,3]
[359318506,1745919034839,-400.0,0.00035616,3]
[359318507,1745919034848,-400.0,0.00035616,3]
[359318508,1745919034858,-400.0,0.00035616,3]
[359318509,1745919034867,-1040.57,0.00035616,3]
[359318510,1745919034876,-400.0,0.00035616,3]
[359318511,1745919034886,-267.63795159,0.00035616,3]
[359318512,1745919034896,-500.0,0.00035616,3]
[359318513,1745919034905,-151.0,0.00035616,3]
[359318514,1745919034915,-400.0,0.00035616,3]
[359318515,1745919034924,-151.0,0.00035616,3]
[359318516,1745919034934,-400.0,0.00035616,3]
[359318517,1745919034943,-400.0,0.00035616,3]
[359318518,1745919034953,-400.0,0.00035616,3]
[359318519,1745919034964,-314.81297123,0.00035616,3]
[359318520,1745919034973,-400.0,0.00035616,3]
[359318521,1745919034983,-400.0,0.00035616,3]
[359318522,1745919034993,-561.29,0.00035616,3]